fUSD/lending_fUSD_20250620
["ID","MTS","AMOUNT","RATE_DAILY","PERIOD"]
[366697997,1750415481215,-151.0,0.00025882,7]
[366697998,1750415481227,-248.936062,0.00025882,7]
[366697999,1750415481238,-248.936062,0.00025882,7]
[366698000,1750415481248,-303.833978,0.00025882,7]
[366698001,1750415481259,-303.833978,0.00025882,7]
[366698002,1750415481270,-151.0,0.00025882,7]
[366698003,1750415481281,-151.0,0.00025882,7]
[366698004,1750415481292,-500.0,0.00025882,4]
[366698005,1750415481303,-500.0,0.00025882,4]
[366698006,1750415481314,-1038.4,0.00025882,4]
[366698007,1750415481325,-500.0,0.00025882,4]
[366698008,1750415481335,-151.0,0.00025883,7]
[366698009,1750415481345,-151.0,0.00025883,7]
[366698010,1750415481355,-151.0,0.00025883,7]
[366698011,1750415481365,-151.0,0.00025883,7]
[366698012,1750415481375,-151.507316,0.00025883,7]
[366698013,1750415481385,-151.0,0.00025883,7]
[366698014,1750415481395,-151.0,0.00025883,7]
[366698015,1750415481404,-151.0,0.00025883,7]
[366698016,1750415481415,-151.0,0.00025883,7]
[366698017,1750415481425,-151.0,0.00025883,7]
[366698018,1750415481434,-351.172876,0.00025883,7]
[366698019,1750415481445,-351.172876,0.00025883,7]
[366698020,1750415481456,-1859.624859,0.00025883,7]
[366698021,1750415481466,-1859.624859,0.00025883,7]
[366698022,1750415481475,-1859.624859,0.00025883,7]
[366698023,1750415481485,-1859.624859,0.00025883,7]
[366698024,1750415481495,-379.19163,0.00025883,7]
[366698025,1750415481505,-379.19163,0.00025883,7]
[366698026,1750415481515,-274.173819,0.00025883,7]
[366698027,1750415481525,-274.173819,0.00025883,7]
[366698028,1750415481536,-163.85551,0.00025883,7]
[366698029,1750415481545,-163.85551,0.00025883,7]
[366698030,1750415481555,-2551.478634,0.00025883,7]
[366698031,1750415481566,-2551.478634,0.00025883,7]
[366698032,1750415481576,-151.0,0.00025883,7]
[366698033,1750415481585,-247.897813,0.00025883,7]
[366698034,1750415481595,-247.897813,0.00025883,7]
[366698035,1750415481605,-151.0,0.00025883,7]
[366698036,1750415481615,-312.569381,0.00025883,7]
[366698037,1750415481624,-312.569381,0.00025883,7]
[366698038,1750415481634,-151.0,0.00025883,7]
[366698039,1750415481644,-282.733072,0.00025883,7]
[366698040,1750415481654,-262.333288,0.00025883,7]
[366698041,1750415481664,-275.716723,0.00025883,7]
[366698042,1750415481675,-312.753519,0.00025883,7]
[366698043,1750415481685,-312.753519,0.00025883,7]
[366698044,1750415481695,-1308.218009,0.00025883,7]
[366698045,1750415481705,-1308.218009,0.00025883,7]
[366698046,1750415481715,-265.133309,0.00025883,7]
[366698047,1750415481725,-265.133309,0.00025883,7]
[366698048,1750415481735,-1979.221241,0.00025883,7]
[366698049,1750415481745,-1979.221241,0.00025883,7]
[366698050,1750415481755,-439.198607,0.00025883,7]
[366698051,1750415481765,-439.198607,0.00025883,7]
[366698052,1750415481775,-150.0,0.00025883,4]
[366698053,1750415481785,-500.0,0.00025883,4]
[366698054,1750415481795,-218.23619018,0.00025883,4]
[366698055,1750415481805,-150.0,0.00025883,4]
[366698056,1750415481815,-150.0,0.00025883,4]
[366698057,1750415481825,-500.0,0.00025883,4]
[366698058,1750415481835,-150.0,0.00025883,4]
[366698059,1750415481845,-150.0,0.00025883,4]
[366698060,1750415481856,-150.0,0.00025883,4]
[366698061,1750415481866,-500.0,0.00025883,4]
[366698062,1750415481875,-150.0,0.00025883,4]
[366698063,1750415481886,-500.0,0.00025883,4]
[366698064,1750415481897,-500.0,0.00025883,4]
[366698065,1750415481906,-500.0,0.00025883,4]
[366698066,1750415481916,-500.0,0.00025883,4]
[366698067,1750415481926,-500.0,0.00025883,4]
[366698068,1750415481936,-500.0,0.00025883,4]
[366698069,1750415481945,-150.0,0.00025883,4]
[366698070,1750415481955,-150.0,0.00025883,4]
[366698071,1750415481964,-150.0,0.00025883,4]
[366698072,1750415481974,-150.0,0.00025883,2]
[366698073,1750415481984,-150.0,0.00025883,4]
[366698074,1750415481993,-150.0,0.00025883,4]
[366698075,1750415482003,-150.0,0.00025883,4]
[366698076,1750415482012,-500.0,0.00025883,2]
[366698077,1750415482022,-500.0,0.00025883,4]
[366698078,1750415482032,-500.0,0.00025883,4]
[366698079,1750415482041,-3070.0,0.00025883,4]
[366698080,1750415482051,-150.0,0.00025883,4]
[366698081,1750415482061,-150.82942947,0.00025883,2]
[366698082,1750415482070,-201.6574953,0.00025883,4]
[366698083,1750415482080,-150.0,0.00025883,4]
[366698084,1750415482090,-500.0,0.00025883,4]
[366698085,1750415482103,-500.0,0.00025883,4]
[366698086,1750415482113,-168.68331976,0.00025885,2]
[366698087,1750415482123,-151.0,0.00025891,7]
[366698088,1750415482134,-162.328787,0.00025891,7]
[366698089,1750415482144,-162.328787,0.00025891,7]
[366698090,1750415482154,-360.274223,0.00025891,7]
[366698091,1750415482165,-151.0,0.00025891,7]
[366698092,1750415482176,-151.0,0.00025891,7]
[366698093,1750415482185,-151.0,0.00025891,7]
[366698094,1750415482196,-498.97563,0.00025891,7]
[366698095,1750415482206,-498.97563,0.00025891,7]
[366698096,1750415482216,-563.488081,0.00025891,7]
[366698097,1750415482226,-563.488081,0.00025891,7]
[366698098,1750415482237,-1047.540513,0.00025891,7]
[366698099,1750415482248,-1047.540513,0.00025891,7]
[366698100,1750415482258,-151.0,0.00025891,7]
[366698101,1750415482268,-191.446118,0.00025901,7]
[366698102,1750415482278,-191.446118,0.00025901,7]
[366698103,1750415482288,-1541.087362,0.00025901,7]
[366698104,1750415482297,-1541.087362,0.00025901,7]
[366698105,1750415482307,-205.0,0.00025901,6]
[366698106,1750415482316,-1048.42229328,0.00025901,2]
[366698107,1750415482326,-151.0,0.00025908,7]
[366698108,1750415482335,-351.172876,0.00025908,7]
[366698109,1750415482345,-351.172876,0.00025908,7]
[366698110,1750415482354,-274.173819,0.00025908,7]
[366698111,1750415482364,-274.173819,0.00025908,7]
[366698112,1750415482374,-2551.478634,0.00025908,7]
[366698113,1750415482383,-2551.478634,0.00025908,7]
[366698114,1750415482393,-151.0,0.00025908,7]
[366698115,1750415482402,-151.0,0.00025908,7]
[366698116,1750415482412,-151.0,0.00025909,7]
[366698117,1750415482421,-151.0,0.00025909,7]
[366698118,1750415482431,-291.758859,0.00025909,7]
[366698119,1750415482440,-151.0,0.00025909,7]
[366698120,1750415482450,-379.19163,0.00025909,7]
[366698121,1750415482460,-379.19163,0.00025909,7]
[366698122,1750415482470,-163.85551,0.00025909,7]
[366698123,1750415482480,-163.85551,0.00025909,7]
[366698124,1750415482490,-959.767891,0.00025909,7]
[366698125,1750415482499,-959.767891,0.00025909,7]
[366698126,1750415482511,-584.193166,0.00025909,7]
[366698127,1750415482520,-584.193166,0.00025909,7]
[366698128,1750415482530,-201.015627,0.00025909,7]
[366698129,1750415482540,-201.015627,0.00025909,7]
[366698130,1750415482550,-224.030406,0.00025909,7]
[366698131,1750415482559,-224.030406,0.00025909,7]
[366698132,1750415482568,-10000.0,0.00025909,7]
[366698133,1750415482578,-10000.0,0.00025909,7]
[366698134,1750415482588,-10000.0,0.00025909,7]
[366698135,1750415482598,-10000.0,0.00025909,7]
[366698136,1750415482608,-209.914755,0.00025909,7]
[366698137,1750415482618,-209.914755,0.00025909,7]
[366698138,1750415482627,-243.405194,0.00025909,7]
[366698139,1750415482637,-243.405194,0.00025909,7]
[366698140,1750415482646,-985.154821,0.00025909,7]
[366698141,1750415482657,-985.154821,0.00025909,7]
[366698142,1750415482667,-1180.663306,0.00025909,7]
[366698143,1750415482676,-178.980671,0.00025909,7]
[366698144,1750415482686,-178.980671,0.00025909,7]
[366698145,1750415482697,-1180.663306,0.00025909,7]
[366698146,1750415482706,-151.0,0.00025909,7]
[366698147,1750415482716,-2496.698892,0.00025909,7]
[366698148,1750415482726,-2496.698892,0.00025909,7]
[366698149,1750415482736,-242.497975,0.00025909,7]
[366698150,1750415482746,-242.497975,0.00025909,7]
[366698151,1750415482756,-226.355101,0.00025909,7]
[366698152,1750415482766,-226.355101,0.00025909,7]
[366698153,1750415482776,-168.834443,0.00025909,7]
[366698154,1750415482785,-168.834443,0.00025909,7]
[366698155,1750415482795,-399.114272,0.00025909,7]
[366698156,1750415482805,-399.114272,0.00025909,7]
[366698157,1750415482816,-821.954408,0.00025909,7]
[366698158,1750415482825,-821.954408,0.00025909,7]
[366698159,1750415482835,-151.0,0.0002591,7]
[366698160,1750415482844,-1859.624859,0.0002591,7]
[366698161,1750415482854,-1859.624859,0.0002591,7]
[366698162,1750415482863,-188.72142402,0.0002591,4]
[366698163,1750415482873,-500.0,0.0002591,4]
[366698164,1750415482882,-150.0,0.0002591,4]
[366698165,1750415482892,-500.0,0.0002591,4]
[366698166,1750415482903,-182.16422887,0.0002591,4]
[366698167,1750415482913,-150.0,0.0002591,4]
[366698168,1750415482922,-500.0,0.0002591,4]
[366698169,1750415482932,-150.0,0.0002591,4]
[366698170,1750415482943,-500.0,0.0002591,4]
[366698171,1750415482953,-500.0,0.0002591,4]
[366698172,1750415482963,-500.0,0.0002591,4]
[366698173,1750415482974,-500.0,0.0002591,4]
[366698174,1750415482983,-500.0,0.0002591,4]
[366698175,1750415482994,-500.0,0.0002591,4]
[366698176,1750415483005,-151.72035687,0.0002591,4]
[366698177,1750415483015,-150.0,0.0002591,4]
[366698178,1750415483025,-150.0,0.0002591,4]
[366698179,1750415483034,-200.81419295,0.0002591,2]
[366698180,1750415483045,-286.26770993,0.0002591,4]
[366698181,1750415483055,-150.0,0.0002591,4]
[366698182,1750415483065,-500.0,0.0002591,2]
[366698183,1750415483075,-500.0,0.0002591,4]
[366698184,1750415483086,-500.0,0.0002591,4]
[366698185,1750415483096,-3070.0,0.0002591,4]
[366698186,1750415483109,-186.06049532,0.0002591,4]
[366698187,1750415483120,-500.0,0.0002591,4]
[366698188,1750415483131,-500.0,0.0002591,4]
[366698189,1750415483141,-638.0,0.0002591,2]
[366698190,1750415483153,-803.0,0.0002591,2]
[366698191,1750415483163,-559.0,0.0002591,2]
[366698192,1750415483174,-928.0,0.0002591,2]
[366698193,1750415483184,-1278.0,0.0002591,2]
[366698194,1750415483199,-2004.0,0.0002591,2]
[366698195,1750415483210,-591.0,0.0002591,2]
[366698196,1750415483220,-1675.0,0.0002591,2]
[366698197,1750415483230,-1161.0,0.0002591,2]
[366698198,1750415483240,-4094.0,0.0002591,2]
[366698199,1750415483251,-203.416,0.0002591,2]
[366698200,1750415483261,-7117.0,0.0002591,2]
[366698201,1750415483272,-500.0,0.00025932,4]
[366698202,1750415483282,-500.0,0.00025932,4]
[366698203,1750415483292,-1038.4,0.00025932,4]
[366698204,1750415483302,-500.0,0.00025932,4]
[366698205,1750415483313,-340.54121,0.00025933,7]
[366698206,1750415483326,-340.54121,0.00025933,7]
[366698207,1750415483336,-174.163115,0.00025933,7]
[366698208,1750415483346,-174.163115,0.00025933,7]
[366698209,1750415483356,-152.41121,0.00025933,7]
[366698210,1750415483366,-152.41121,0.00025933,7]
[366698211,1750415483377,-807.151368,0.00025933,7]
[366698212,1750415483388,-807.151368,0.00025933,7]
[366698213,1750415483398,-414.404727,0.00025933,7]
[366698214,1750415483409,-414.404727,0.00025933,7]
[366698215,1750415483420,-151.0,0.00025933,7]
[366698216,1750415483430,-248.936062,0.00025933,7]
[366698217,1750415483441,-151.0,0.00025933,7]
[366698218,1750415483452,-151.0,0.00025933,7]
[366698219,1750415483463,-248.936062,0.00025933,7]
[366698220,1750415483473,-398.851022,0.00025933,7]
[366698221,1750415483483,-398.851022,0.00025933,7]
[366698222,1750415483494,-151.0,0.00025933,7]
[366698223,1750415483504,-151.0,0.00025933,7]
[366698224,1750415483515,-303.833978,0.00025933,7]
[366698225,1750415483525,-303.833978,0.00025933,7]
[366698226,1750415483537,-205.587972,0.00025933,7]
[366698227,1750415483547,-205.587972,0.00025933,7]
[366698228,1750415483558,-151.0,0.00025933,7]
[366698229,1750415483568,-151.0,0.00025933,7]
[366698230,1750415483578,-492.677088,0.00025933,7]
[366698231,1750415483589,-492.677088,0.00025933,7]
[366698232,1750415483600,-370.729428,0.00025933,7]
[366698233,1750415483610,-370.729428,0.00025933,7]
[366698234,1750415483621,-775.47665243,0.00025934,14]
[366698235,1750415483631,-151.0,0.00025936,7]
[366698236,1750415483643,-151.0,0.00025936,7]
[366698237,1750415483654,-420.090882,0.00025936,7]
[366698238,1750415483665,-420.090882,0.00025936,7]
[366698239,1750415483677,-225.089144,0.00025936,7]
[366698240,1750415483688,-225.089144,0.00025936,7]
[366698241,1750415483700,-2674.385682,0.00025936,7]
[366698242,1750415483711,-2674.385682,0.00025936,7]
[366698243,1750415483721,-151.0,0.00025936,7]
[366698244,1750415483732,-151.0,0.00025936,7]
[366698245,1750415483743,-151.0,0.00025936,7]
[366698246,1750415483755,-151.0,0.00025936,7]
[366698247,1750415483765,-294.655675,0.00025936,7]
[366698248,1750415483775,-294.655675,0.00025936,7]
[366698249,1750415483786,-3374.102372,0.00025936,7]
[366698250,1750415483796,-3374.102372,0.00025936,7]
[366698251,1750415483808,-1296.61652358,0.00025937,2]
[366698252,1750415483818,-257.46338787,0.00025938,4]
[366698253,1750415483829,-150.0,0.00025938,4]
[366698254,1750415483842,-408.81066163,0.00025938,4]
[366698255,1750415483853,-150.0,0.00025938,4]
[366698256,1750415483863,-500.0,0.00025938,4]
[366698257,1750415483873,-150.0,0.00025938,4]
[366698258,1750415483884,-500.0,0.00025938,4]
[366698259,1750415483894,-500.0,0.00025938,4]
[366698260,1750415483904,-500.0,0.00025938,4]
[366698261,1750415483914,-328.00730202,0.00025938,4]
[366698262,1750415483924,-500.0,0.00025938,4]
[366698263,1750415483934,-500.0,0.00025938,4]
[366698264,1750415483944,-207.14261908,0.00025938,4]
[366698265,1750415483954,-150.0,0.00025938,4]
[366698266,1750415483964,-150.0,0.00025938,4]
[366698267,1750415483974,-500.0,0.00025938,2]
[366698268,1750415483984,-500.0,0.00025938,4]
[366698269,1750415483994,-191.57236033,0.00025938,4]
[366698270,1750415484004,-3070.0,0.00025938,4]
[366698271,1750415484015,-500.0,0.00025938,4]
[366698272,1750415484025,-500.0,0.00025938,4]
[366698273,1750415484036,-500.0,0.0002594,4]
[366698274,1750415484046,-1038.4,0.0002594,4]
[366698275,1750415484057,-574.775804,0.00025941,7]
[366698276,1750415484068,-574.775804,0.00025941,7]
[366698277,1750415484078,-151.0,0.00025941,7]
[366698278,1750415484088,-151.0,0.00025941,7]
[366698279,1750415484099,-151.0,0.00025941,7]
[366698280,1750415484109,-153.844487,0.00025941,7]
[366698281,1750415484119,-351.172876,0.00025941,7]
[366698282,1750415484129,-351.172876,0.00025941,7]
[366698283,1750415484140,-1859.624859,0.00025941,7]
[366698284,1750415484151,-1859.624859,0.00025941,7]
[366698285,1750415484162,-379.19163,0.00025941,7]
[366698286,1750415484172,-379.19163,0.00025941,7]
[366698287,1750415484183,-171.401003,0.00025941,7]
[366698288,1750415484194,-274.173819,0.00025941,7]
[366698289,1750415484204,-274.173819,0.00025941,7]
[366698290,1750415484214,-162.328787,0.00025941,7]
[366698291,1750415484224,-162.328787,0.00025941,7]
[366698292,1750415484235,-360.274223,0.00025941,7]
[366698293,1750415484245,-151.0,0.00025941,7]
[366698294,1750415484255,-151.0,0.00025941,7]
[366698295,1750415484265,-163.85551,0.00025941,7]
[366698296,1750415484275,-163.85551,0.00025941,7]
[366698297,1750415484286,-2551.478634,0.00025941,7]
[366698298,1750415484296,-2551.478634,0.00025941,7]
[366698299,1750415484306,-151.0,0.00025941,7]
[366698300,1750415484316,-220.720466,0.00025941,7]
[366698301,1750415484326,-498.97563,0.00025941,7]
[366698302,1750415484337,-498.97563,0.00025941,7]
[366698303,1750415484347,-563.488081,0.00025941,7]
[366698304,1750415484357,-563.488081,0.00025941,7]
[366698305,1750415484368,-1047.540513,0.00025941,7]
[366698306,1750415484378,-1047.540513,0.00025941,7]
[366698307,1750415484388,-151.0,0.00025941,7]
[366698308,1750415484399,-151.0,0.00025941,7]
[366698309,1750415484409,-344.384195,0.00025941,7]
[366698310,1750415484419,-344.384195,0.00025941,7]
[366698311,1750415484430,-155.529264,0.00025941,7]
[366698312,1750415484440,-155.529264,0.00025941,7]
[366698313,1750415484451,-276.108613,0.00025941,7]
[366698314,1750415484462,-276.108613,0.00025941,7]
[366698315,1750415484473,-158.60480261,0.00025945,30]
[366698316,1750415484484,-1308.218009,0.00025948,7]
[366698317,1750415484495,-1308.218009,0.00025948,7]
[366698318,1750415484505,-265.133309,0.00025948,7]
[366698319,1750415484516,-265.133309,0.00025948,7]
[366698320,1750415484527,-1979.221241,0.00025948,7]
[366698321,1750415484538,-1979.221241,0.00025948,7]
[366698322,1750415484548,-439.198607,0.00025948,7]
[366698323,1750415484559,-439.198607,0.00025948,7]
[366698324,1750415484570,-252.255813,0.00025949,7]
[366698325,1750415484581,-252.255813,0.00025949,7]
[366698326,1750415484592,-229.0,0.00025956,2]
[366698327,1750415484602,-150.0,0.00025965,4]
[366698328,1750415484613,-227.77345186,0.00025965,4]
[366698329,1750415484623,-500.0,0.00025965,4]
[366698330,1750415484634,-202.25397889,0.00025965,4]
[366698331,1750415484644,-500.0,0.00025965,4]
[366698332,1750415484654,-500.0,0.00025965,4]
[366698333,1750415484665,-500.0,0.00025965,4]
[366698334,1750415484675,-500.0,0.00025965,4]
[366698335,1750415484686,-500.0,0.00025965,4]
[366698336,1750415484696,-150.0,0.00025965,4]
[366698337,1750415484707,-273.05352313,0.00025965,4]
[366698338,1750415484718,-500.0,0.00025965,2]
[366698339,1750415484728,-500.0,0.00025965,4]
[366698340,1750415484738,-3070.0,0.00025965,4]
[366698341,1750415484749,-500.0,0.00025965,4]
[366698342,1750415484760,-500.0,0.00025965,4]
[366698343,1750415484771,-151.0,0.00025966,7]
[366698344,1750415484782,-247.897813,0.00025973,7]
[366698345,1750415484792,-247.897813,0.00025973,7]
[366698346,1750415484802,-312.569381,0.00025973,7]
[366698347,1750415484813,-312.569381,0.00025973,7]
[366698348,1750415484823,-151.0,0.00025982,7]
[366698349,1750415484834,-188.779238,0.00025982,7]
[366698350,1750415484845,-188.779238,0.00025982,7]
[366698351,1750415484855,-151.0,0.00025982,7]
[366698352,1750415484866,-344.19337075,0.00025988,2]
[366698353,1750415484877,-300.0,0.00025988,10]
[366698354,1750415484887,-666.0,0.00025988,2]
[366698355,1750415484898,-300.0,0.00025988,10]
[366698356,1750415484908,-300.0,0.00025988,10]
[366698357,1750415484919,-500.0,0.00025988,4]
[366698358,1750415484930,-500.0,0.00025988,4]
[366698359,1750415484941,-500.0,0.00025988,4]
[366698360,1750415484952,-500.0,0.00025988,4]
[366698361,1750415484963,-500.0,0.00025988,4]
[366698362,1750415484973,-500.0,0.00025988,4]
[366698363,1750415484983,-1038.4,0.00025988,4]
[366698364,1750415484994,-1038.4,0.00025988,4]
[366698365,1750415485006,-1038.4,0.00025988,4]
[366698366,1750415485017,-500.0,0.00025988,4]
[366698367,1750415485028,-500.0,0.00025988,4]
[366698368,1750415485039,-500.0,0.00025988,4]
[366698369,1750415485050,-249.55227,0.00025989,7]
[366698370,1750415485061,-249.55227,0.00025989,7]
[366698371,1750415485071,-151.0,0.00025989,7]
[366698372,1750415485082,-820.27178,0.00025989,7]
[366698373,1750415485093,-820.27178,0.00025989,7]
[366698374,1750415485114,-151.0,0.00025989,7]
[366698375,1750415485129,-151.0,0.00025989,7]
[366698376,1750415485140,-151.0,0.00025989,7]
[366698377,1750415485152,-316.98,0.00025989,7]
[366698378,1750415485163,-316.98,0.00025989,7]
[366698379,1750415485175,-190.656167,0.00025989,7]
[366698380,1750415485185,-190.656167,0.00025989,7]
[366698381,1750415485197,-151.0,0.00025989,7]
[366698382,1750415485207,-281.135198,0.00025989,7]
[366698383,1750415485218,-151.0,0.00025989,7]
[366698384,1750415485231,-151.0,0.00025989,7]
[366698385,1750415485242,-667.338228,0.00025989,7]
[366698386,1750415485253,-667.338228,0.00025989,7]
[366698387,1750415485263,-151.0,0.00025989,7]
[366698388,1750415485275,-151.0,0.00025989,7]
[366698389,1750415485286,-252.255813,0.00025989,7]
[366698390,1750415485296,-151.0,0.00025989,7]
[366698391,1750415485307,-252.255813,0.00025989,7]
[366698392,1750415485318,-188.779238,0.00025989,7]
[366698393,1750415485329,-188.779238,0.00025989,7]
[366698394,1750415485340,-151.0,0.00025989,7]
[366698395,1750415485351,-151.0,0.00025989,7]
[366698396,1750415485361,-151.0,0.00025989,7]
[366698397,1750415485372,-441.712036,0.00025989,7]
[366698398,1750415485383,-441.712036,0.00025989,7]
[366698399,1750415485394,-400.991217,0.00025989,7]
[366698400,1750415485405,-400.991217,0.00025989,7]
[366698401,1750415485416,-151.0,0.00025989,7]
[366698402,1750415485427,-179.203835,0.00025989,7]
[366698403,1750415485438,-151.0,0.00025989,7]
[366698404,1750415485449,-628.359449,0.00025989,7]
[366698405,1750415485460,-177.427949,0.00025989,7]
[366698406,1750415485471,-628.359449,0.00025989,7]
[366698407,1750415485482,-177.427949,0.00025989,7]
[366698408,1750415485492,-574.775804,0.00025989,7]
[366698409,1750415485503,-574.775804,0.00025989,7]
[366698410,1750415485514,-459.40601,0.00025989,7]
[366698411,1750415485525,-459.40601,0.00025989,7]
[366698412,1750415485536,-171.362756,0.00025989,7]
[366698413,1750415485546,-171.362756,0.00025989,7]
[366698414,1750415485557,-151.0,0.00025989,7]
[366698415,1750415485567,-151.0,0.00025989,7]
[366698416,1750415485578,-152.199142,0.00025989,7]
[366698417,1750415485589,-151.0,0.00025989,7]
[366698418,1750415485599,-151.0,0.00025989,7]
[366698419,1750415485610,-249.190389,0.00025989,7]
[366698420,1750415485620,-151.0,0.00025989,7]
[366698421,1750415485631,-351.172876,0.00025989,7]
[366698422,1750415485641,-351.172876,0.00025989,7]
[366698423,1750415485652,-155.075393,0.00025989,7]
[366698424,1750415485662,-155.075393,0.00025989,7]
[366698425,1750415485673,-1859.624859,0.00025989,7]
[366698426,1750415485684,-151.0,0.00025989,7]
[366698427,1750415485694,-1859.624859,0.00025989,7]
[366698428,1750415485705,-151.0,0.00025989,7]
[366698429,1750415485715,-379.19163,0.00025989,7]
[366698430,1750415485726,-379.19163,0.00025989,7]
[366698431,1750415485738,-274.173819,0.00025989,7]
[366698432,1750415486088,-274.173819,0.00025989,7]
[366698433,1750415486109,-151.0,0.00025989,7]
[366698434,1750415486119,-151.0,0.00025989,7]
[366698435,1750415486129,-162.328787,0.00025989,7]
[366698436,1750415486140,-162.328787,0.00025989,7]
[366698437,1750415486150,-191.446118,0.00025989,7]
[366698438,1750415486160,-191.446118,0.00025989,7]
[366698439,1750415486170,-360.274223,0.00025989,7]
[366698440,1750415486180,-151.0,0.00025989,7]
[366698441,1750415486190,-151.0,0.00025989,7]
[366698442,1750415486200,-163.85551,0.00025989,7]
[366698443,1750415486211,-163.85551,0.00025989,7]
[366698444,1750415486221,-2551.478634,0.00025989,7]
[366698445,1750415486232,-2551.478634,0.00025989,7]
[366698446,1750415486242,-151.0,0.00025989,7]
[366698447,1750415486252,-151.0,0.00025989,7]
[366698448,1750415486262,-151.0,0.00025989,7]
[366698449,1750415486273,-818.371445,0.00025989,7]
[366698450,1750415486283,-1541.087362,0.00025989,7]
[366698451,1750415486293,-1541.087362,0.00025989,7]
[366698452,1750415486303,-498.97563,0.00025989,7]
[366698453,1750415486313,-498.97563,0.00025989,7]
[366698454,1750415486323,-247.897813,0.00025989,7]
[366698455,1750415486333,-247.897813,0.00025989,7]
[366698456,1750415486343,-240.805476,0.00025989,7]
[366698457,1750415486353,-563.488081,0.00025989,7]
[366698458,1750415486363,-563.488081,0.00025989,7]
[366698459,1750415486373,-340.54121,0.00025989,7]
[366698460,1750415486383,-340.54121,0.00025989,7]
[366698461,1750415486392,-174.163115,0.00025989,7]
[366698462,1750415486402,-174.163115,0.00025989,7]
[366698463,1750415486412,-312.569381,0.00025989,7]
[366698464,1750415486422,-152.41121,0.00025989,7]
[366698465,1750415486432,-312.569381,0.00025989,7]
[366698466,1750415486443,-152.41121,0.00025989,7]
[366698467,1750415486453,-1047.540513,0.00025989,7]
[366698468,1750415486463,-1047.540513,0.00025989,7]
[366698469,1750415486473,-151.0,0.00025989,7]
[366698470,1750415486483,-151.0,0.00025989,7]
[366698471,1750415486493,-262.333288,0.00025989,7]
[366698472,1750415486504,-262.333288,0.00025989,7]
[366698473,1750415486514,-262.333288,0.00025989,7]
[366698474,1750415486524,-151.0,0.00025989,7]
[366698475,1750415486534,-151.0,0.00025989,7]
[366698476,1750415486544,-807.151368,0.00025989,7]
[366698477,1750415486553,-807.151368,0.00025989,7]
[366698478,1750415486564,-414.404727,0.00025989,7]
[366698479,1750415486574,-414.404727,0.00025989,7]
[366698480,1750415486583,-420.090882,0.00025989,7]
[366698481,1750415486593,-420.090882,0.00025989,7]
[366698482,1750415486603,-151.0,0.00025989,7]
[366698483,1750415486613,-312.753519,0.00025989,7]
[366698484,1750415486623,-312.753519,0.00025989,7]
[366698485,1750415486634,-312.753519,0.00025989,7]
[366698486,1750415486644,-312.753519,0.00025989,7]
[366698487,1750415486654,-225.089144,0.00025989,7]
[366698488,1750415486664,-225.089144,0.00025989,7]
[366698489,1750415486674,-248.936062,0.00025989,7]
[366698490,1750415486684,-151.0,0.00025989,7]
[366698491,1750415486695,-151.0,0.00025989,7]
[366698492,1750415486705,-248.936062,0.00025989,7]
[366698493,1750415486715,-2674.385682,0.00025989,7]
[366698494,1750415486725,-2674.385682,0.00025989,7]
[366698495,1750415486735,-398.851022,0.00025989,7]
[366698496,1750415486746,-398.851022,0.00025989,7]